[Event "*** Titled Tuesday Blitz"]
[Site "Chess.com"]
[Date "2020.04.14"]
[Round "6"]
[White "Jbd735"]
[Black "isla88"]
[Result "0-1"]
[WhiteElo "2421"]
[BlackElo "2297"]
[TimeControl "180+1"]
[EndTime "11:04:22 PDT"]
[Termination "isla88 won on time"]

1. e4 {[%clk 0:03:00.9]} 1... c5 {[%clk 0:02:47.2]} 2. Nf3 {[%clk 0:03:00.8]}
2... Nc6 {[%clk 0:02:46.6]} 3. Bb5 {[%clk 0:02:58.9]} 3... g6 {[%clk 0:02:46.3]}
4. O-O {[%clk 0:02:56.4]} 4... Bg7 {[%clk 0:02:46.3]} 5. d3 {[%clk 0:02:52.2]}
5... e5 {[%clk 0:02:45.5]} 6. Bxc6 {[%clk 0:02:49.5]} 6... dxc6 {[%clk 0:02:45]}
7. Nbd2 {[%clk 0:02:46.5]} 7... Qc7 {[%clk 0:02:43.3]} 8. a4 {[%clk 0:02:39.1]}
8... b6 {[%clk 0:02:42]} 9. b3 {[%clk 0:02:35.9]} 9... Nf6 {[%clk 0:02:40.2]}
10. Bb2 {[%clk 0:02:31.8]} 10... Nd7 {[%clk 0:02:40]} 11. Nc4 {[%clk 0:02:28]}
11... O-O {[%clk 0:02:28.1]} 12. Re1 {[%clk 0:02:28.2]} 12... Re8 {[%clk
0:02:19.3]} 13. h3 {[%clk 0:02:24.7]} 13... Nf8 {[%clk 0:02:18.4]} 14. Qd2
{[%clk 0:02:21.4]} 14... f6 {[%clk 0:02:15.7]} 15. b4 {[%clk 0:02:06.7]} 15...
cxb4 {[%clk 0:02:12.3]} 16. Qxb4 {[%clk 0:02:07.6]} 16... c5 {[%clk 0:02:05.6]}
17. Qc3 {[%clk 0:01:58.7]} 17... Ne6 {[%clk 0:01:49.5]} 18. Ne3 {[%clk
0:01:53.8]} 18... Nf4 {[%clk 0:01:44.9]} 19. Kh2 {[%clk 0:01:37.9]} 19... Qd7
{[%clk 0:01:37.4]} 20. Ng1 {[%clk 0:01:34.8]} 20... h5 {[%clk 0:01:31.6]} 21. a5
{[%clk 0:01:34.3]} 21... Rb8 {[%clk 0:01:29.9]} 22. axb6 {[%clk 0:01:32.7]}
22... axb6 {[%clk 0:01:30.8]} 23. Qb3+ {[%clk 0:01:08.3]} 23... Kh7 {[%clk
0:01:27.6]} 24. Nd5 {[%clk 0:01:03]} 24... Nxd5 {[%clk 0:01:22]} 25. Qxd5 {[%clk
0:01:03.9]} 25... Qxd5 {[%clk 0:01:18.5]} 26. exd5 {[%clk 0:01:04.8]} 26... b5
{[%clk 0:01:09.5]} 27. Ra7 {[%clk 0:00:46.3]} 27... Rd8 {[%clk 0:01:02.9]} 28.
f4 {[%clk 0:00:45.2]} 28... Rb7 {[%clk 0:00:45.2]} 29. Rxb7 {[%clk 0:00:41.9]}
29... Bxb7 {[%clk 0:00:46.1]} 30. fxe5 {[%clk 0:00:42.5]} 30... fxe5 {[%clk
0:00:45.7]} 31. Bxe5 {[%clk 0:00:40.8]} 31... Bxd5 {[%clk 0:00:43.4]} 32. Bxg7
{[%clk 0:00:40.5]} 32... Kxg7 {[%clk 0:00:44.3]} 33. Re7+ {[%clk 0:00:39]} 33...
Kf6 {[%clk 0:00:43.8]} 34. Rc7 {[%clk 0:00:38.9]} 34... c4 {[%clk 0:00:43.8]}
35. dxc4 {[%clk 0:00:35.7]} 35... Bxc4 {[%clk 0:00:41.9]} 36. Nf3 {[%clk
0:00:35.4]} 36... Rd1 {[%clk 0:00:38.9]} 37. h4 {[%clk 0:00:32.2]} 37... Rc1
{[%clk 0:00:33.8]} 38. Rc6+ {[%clk 0:00:28.7]} 38... Kf5 {[%clk 0:00:30]} 39.
Kg3 {[%clk 0:00:28.6]} 39... Ke4 {[%clk 0:00:20.8]} 40. Rxg6 {[%clk 0:00:13.8]}
40... Rxc2 {[%clk 0:00:20.6]} 41. Rb6 {[%clk 0:00:11.9]} 41... Bf1 {[%clk
0:00:17.2]} 42. Ne1 {[%clk 0:00:11.1]} 42... Re2 {[%clk 0:00:16.8]} 43. Re6+
{[%clk 0:00:10.6]} 43... Kd4 {[%clk 0:00:12.8]} 44. Rxe2 {[%clk 0:00:10]} 44...
Bxe2 {[%clk 0:00:13.7]} 45. Kf2 {[%clk 0:00:10.4]} 45... Bg4 {[%clk 0:00:08.5]}
46. Nc2+ {[%clk 0:00:09.9]} 46... Kc3 {[%clk 0:00:07.7]} 47. Ne3 {[%clk
0:00:08.5]} 47... Be6 {[%clk 0:00:06.8]} 48. Ke2 {[%clk 0:00:06.1]} 48... b4
{[%clk 0:00:06.8]} 49. Nd1+ {[%clk 0:00:05.4]} 49... Kc2 {[%clk 0:00:06.5]} 50.
Ne3+ {[%clk 0:00:05.8]} 50... Kc1 {[%clk 0:00:06.7]} 51. Kd3 {[%clk 0:00:06]}
51... b3 {[%clk 0:00:07]} 52. Kc3 {[%clk 0:00:01.2]} 52... b2 {[%clk 0:00:06.8]}
0-1

[Event "*** Titled Tuesday Blitz"]
[Site "Chess.com"]
[Date "2020.04.14"]
[Round "6"]
[White "Chesswizard_2007"]
[Black "ChessQueen"]
[Result "0-1"]
[WhiteElo "2615"]
[BlackElo "2809"]
[TimeControl "180+1"]
[EndTime "11:04:23 PDT"]
[Termination "ChessQueen won on time"]

1. d4 {[%clk 0:03:00.9]} 1... Nf6 {[%clk 0:02:59.6]} 2. c4 {[%clk 0:02:59.8]}
2... b6 {[%clk 0:02:58.2]} 3. f3 {[%clk 0:02:46.9]} 3... Bb7 {[%clk 0:02:52]} 4.
e4 {[%clk 0:02:46.4]} 4... d6 {[%clk 0:02:52]} 5. Nc3 {[%clk 0:02:46.2]} 5...
Nbd7 {[%clk 0:02:50.3]} 6. Nge2 {[%clk 0:02:45.6]} 6... e5 {[%clk 0:02:50.4]} 7.
d5 {[%clk 0:02:44.6]} 7... a5 {[%clk 0:02:50.5]} 8. Be3 {[%clk 0:02:44.2]} 8...
Be7 {[%clk 0:02:45.5]} 9. Ng3 {[%clk 0:02:44.2]} 9... g6 {[%clk 0:02:44.6]} 10.
Bh6 {[%clk 0:02:41.5]} 10... Nc5 {[%clk 0:02:40.2]} 11. Be2 {[%clk 0:02:37.1]}
11... Qd7 {[%clk 0:02:40.3]} 12. O-O {[%clk 0:02:29.7]} 12... Rg8 {[%clk
0:02:34.1]} 13. Bg5 {[%clk 0:02:24.8]} 13... h5 {[%clk 0:02:29.2]} 14. b3 {[%clk
0:02:18.6]} 14... Nh7 {[%clk 0:02:26.8]} 15. Bd2 {[%clk 0:01:53.8]} 15... h4
{[%clk 0:02:19.5]} 16. Nh1 {[%clk 0:01:52.6]} 16... f5 {[%clk 0:02:19.3]} 17.
Nf2 {[%clk 0:01:49.7]} 17... Nf6 {[%clk 0:02:14.1]} 18. a3 {[%clk 0:01:39]}
18... a4 {[%clk 0:02:13.2]} 19. b4 {[%clk 0:01:28.6]} 19... Nb3 {[%clk 0:02:13]}
20. Rb1 {[%clk 0:01:23.1]} 20... f4 {[%clk 0:01:40.5]} 21. h3 {[%clk 0:01:08.6]}
21... Nh5 {[%clk 0:01:39.1]} 22. Re1 {[%clk 0:01:07.4]} 22... Ng3 {[%clk
0:01:36.9]} 23. Bd3 {[%clk 0:01:03.6]} 23... Nxd2 {[%clk 0:01:27.2]} 24. Qxd2
{[%clk 0:01:03.6]} 24... Kf7 {[%clk 0:01:20.9]} 25. Bf1 {[%clk 0:00:55.1]} 25...
Rh8 {[%clk 0:01:19.8]} 26. Rec1 {[%clk 0:00:50.6]} 26... Rh5 {[%clk 0:01:18.5]}
27. Nd3 {[%clk 0:00:46]} 27... Rg5 {[%clk 0:01:17.2]} 28. Kh2 {[%clk 0:00:40.4]}
28... Nxf1+ {[%clk 0:01:13.3]} 29. Rxf1 {[%clk 0:00:39.8]} 29... Rg3 {[%clk
0:01:14.2]} 30. c5 {[%clk 0:00:36.4]} 30... Bc8 {[%clk 0:01:02.4]} 31. Nf2
{[%clk 0:00:16.9]} 31... dxc5 {[%clk 0:00:47.5]} 32. Ng4 {[%clk 0:00:16.3]}
32... Rxg4 {[%clk 0:00:43]} 33. fxg4 {[%clk 0:00:17.2]} 33... cxb4 {[%clk
0:00:41.8]} 34. axb4 {[%clk 0:00:18.1]} 34... Bd6 {[%clk 0:00:40.9]} 35. g5
{[%clk 0:00:11.7]} 35... Ba6 {[%clk 0:00:35.3]} 36. Rfc1 {[%clk 0:00:09.3]}
36... a3 {[%clk 0:00:28.9]} 37. b5 {[%clk 0:00:07.9]} 37... Bb7 {[%clk
0:00:27.9]} 38. Ra1 {[%clk 0:00:08.6]} 38... Rh8 {[%clk 0:00:26.5]} 39. Ra2
{[%clk 0:00:08]} 39... Rh5 {[%clk 0:00:25.9]} 40. Ne2 {[%clk 0:00:07.5]} 40...
Rxg5 {[%clk 0:00:25.3]} 41. Ng1 {[%clk 0:00:08.1]} 41... Rg3 {[%clk 0:00:21.2]}
42. Nf3 {[%clk 0:00:08.6]} 42... g5 {[%clk 0:00:21.8]} 43. Rac2 {[%clk
0:00:06.2]} 43... Kf6 {[%clk 0:00:20.6]} 44. Ne1 {[%clk 0:00:05.4]} 44... g4
{[%clk 0:00:20.5]} 45. hxg4 {[%clk 0:00:05.5]} 45... Qxg4 {[%clk 0:00:20]} 46.
Qf2 {[%clk 0:00:06]} 46... h3 {[%clk 0:00:19.6]} 47. Rd2 {[%clk 0:00:02.3]}
47... hxg2 {[%clk 0:00:18.9]} 48. Nxg2 {[%clk 0:00:03.2]} 48... Bc8 {[%clk
0:00:18.1]} 49. Rf1 {[%clk 0:00:02.5]} 49... Qh3+ {[%clk 0:00:17.6]} 50. Kg1
{[%clk 0:00:03.1]} 50... f3 {[%clk 0:00:17.2]} 51. Rd3 {[%clk 0:00:02.8]} 51...
Bc5 {[%clk 0:00:16.4]} 52. Qxc5 {[%clk 0:00:01.2]} 52... bxc5 {[%clk 0:00:16.5]}
53. Rdxf3+ {[%clk 0:00:01.1]} 53... Rxf3 {[%clk 0:00:16.6]} 0-1

[Event "*** Titled Tuesday Blitz"]
[Site "Chess.com"]
[Date "2020.04.14"]
[Round "6"]
[White "HanSchut"]
[Black "Quiet_Desperation"]
[Result "0-1"]
[WhiteElo "2218"]
[BlackElo "1945"]
[TimeControl "180+1"]
[EndTime "11:04:24 PDT"]
[Termination "Quiet_Desperation won on time"]

1. e4 {[%clk 0:03:00.9]} 1... e6 {[%clk 0:02:58.2]} 2. d4 {[%clk 0:02:55.6]}
2... d5 {[%clk 0:02:58.3]} 3. Nd2 {[%clk 0:02:56.2]} 3... Nf6 {[%clk 0:02:58.2]}
4. e5 {[%clk 0:02:56.3]} 4... Nfd7 {[%clk 0:02:58.6]} 5. f4 {[%clk 0:02:56.7]}
5... c5 {[%clk 0:02:58.8]} 6. c3 {[%clk 0:02:57.3]} 6... Nc6 {[%clk 0:02:59.2]}
7. Ndf3 {[%clk 0:02:57.8]} 7... Qb6 {[%clk 0:02:59.2]} 8. a3 {[%clk 0:02:57.3]}
8... cxd4 {[%clk 0:02:59]} 9. cxd4 {[%clk 0:02:57]} 9... Be7 {[%clk 0:02:59.5]}
10. b4 {[%clk 0:02:55.6]} 10... f6 {[%clk 0:02:55.2]} 11. Bd3 {[%clk 0:02:50.4]}
11... fxe5 {[%clk 0:02:53.8]} 12. fxe5 {[%clk 0:02:51.3]} 12... O-O {[%clk
0:02:53.1]} 13. Ne2 {[%clk 0:02:49.4]} 13... Ndxe5 {[%clk 0:02:42.3]} 14. dxe5
{[%clk 0:02:44.5]} 14... Nxe5 {[%clk 0:02:42.4]} 15. Nxe5 {[%clk 0:02:44.7]}
15... Qf2+ {[%clk 0:02:41.9]} 16. Kd2 {[%clk 0:02:45]} 16... Bd7 {[%clk
0:02:08.4]} 17. Nxd7 {[%clk 0:02:36.5]} 17... Rac8 {[%clk 0:02:08.4]} 18. Nc5
{[%clk 0:02:20.7]} 18... b6 {[%clk 0:02:07.8]} 19. Qe1 {[%clk 0:01:46.1]} 19...
Qf6 {[%clk 0:02:06.2]} 20. Rb1 {[%clk 0:01:27.2]} 20... bxc5 {[%clk 0:02:06.2]}
21. Bb2 {[%clk 0:01:20.2]} 21... Qg5+ {[%clk 0:02:05.8]} 22. Kd1 {[%clk
0:01:18.6]} 22... c4 {[%clk 0:01:57.7]} 23. h4 {[%clk 0:01:12.3]} 23... Qe3
{[%clk 0:01:37.7]} 24. Qg3 {[%clk 0:00:40.9]} 24... Qxd3+ {[%clk 0:01:30.6]} 25.
Qxd3 {[%clk 0:00:40.5]} 25... cxd3 {[%clk 0:01:31.5]} 26. Ng3 {[%clk 0:00:20.4]}
26... Rf2 {[%clk 0:01:26.6]} 27. Bd4 {[%clk 0:00:19.2]} 27... Rxg2 {[%clk
0:01:26.2]} 28. Nh5 {[%clk 0:00:19.6]} 28... g6 {[%clk 0:01:05.7]} 29. Nf6+
{[%clk 0:00:18.7]} 29... Bxf6 {[%clk 0:01:02.2]} 30. Bxf6 {[%clk 0:00:19.6]}
30... Rcc2 {[%clk 0:00:59.2]} 31. Bg5 {[%clk 0:00:19.7]} 31... e5 {[%clk
0:00:56.5]} 32. Rc1 {[%clk 0:00:17.5]} 32... Rxc1+ {[%clk 0:00:52.5]} 33. Kxc1
{[%clk 0:00:17.7]} 33... e4 {[%clk 0:00:49.1]} 34. Re1 {[%clk 0:00:15.2]} 34...
Kf7 {[%clk 0:00:42.6]} 35. Be3 {[%clk 0:00:15.3]} 35... d4 {[%clk 0:00:40.4]}
36. Bg5 {[%clk 0:00:08.7]} 36... e3 {[%clk 0:00:39.9]} 37. Bxe3 {[%clk
0:00:07.9]} 37... dxe3 {[%clk 0:00:40]} 38. Rxe3 {[%clk 0:00:08.4]} 38... Rg4
{[%clk 0:00:35.4]} 39. Rxd3 {[%clk 0:00:07.5]} 39... Rxh4 {[%clk 0:00:35.6]} 40.
Rd7+ {[%clk 0:00:08.2]} 40... Kf6 {[%clk 0:00:35.9]} 41. Rxa7 {[%clk 0:00:08.9]}
41... g5 {[%clk 0:00:36.1]} 42. b5 {[%clk 0:00:08.6]} 42... Rc4+ {[%clk
0:00:31.4]} 43. Kb2 {[%clk 0:00:08]} 43... Rc8 {[%clk 0:00:30]} 44. Rxh7 {[%clk
0:00:06.3]} 44... g4 {[%clk 0:00:30.1]} 45. Rh1 {[%clk 0:00:06.3]} 45... Kf5
{[%clk 0:00:30.4]} 46. Kb3 {[%clk 0:00:06.5]} 46... Kf4 {[%clk 0:00:30.6]} 47.
Kb4 {[%clk 0:00:07.1]} 47... Kf3 {[%clk 0:00:31.1]} 48. a4 {[%clk 0:00:07]}
48... g3 {[%clk 0:00:31.5]} 49. Rg1 {[%clk 0:00:07.3]} 49... Kf2 {[%clk
0:00:28.4]} 50. Rxg3 {[%clk 0:00:06.8]} 50... Kxg3 {[%clk 0:00:29.3]} 51. b6
{[%clk 0:00:07.1]} 51... Kf4 {[%clk 0:00:29.5]} 52. a5 {[%clk 0:00:07.5]} 52...
Ke5 {[%clk 0:00:29.7]} 53. b7 {[%clk 0:00:07.5]} 53... Rb8 {[%clk 0:00:29.4]}
54. a6 {[%clk 0:00:07.8]} 54... Kd6 {[%clk 0:00:29.5]} 55. Kb5 {[%clk
0:00:07.2]} 55... Kc7 {[%clk 0:00:22.9]} 56. Kc5 {[%clk 0:00:07.3]} 56... Re8
{[%clk 0:00:18.6]} 57. Kd5 {[%clk 0:00:06.9]} 57... Kb8 {[%clk 0:00:18]} 58. Kd6
{[%clk 0:00:04.1]} 58... Ka7 {[%clk 0:00:15.6]} 0-1

[Event "*** Titled Tuesday Blitz"]
[Site "Chess.com"]
[Date "2020.04.14"]
[Round "6"]
[White "WelshTiger"]
[Black "medalja"]
[Result "1-0"]
[WhiteElo "2295"]
[BlackElo "2410"]
[TimeControl "180+1"]
[EndTime "11:04:24 PDT"]
[Termination "WelshTiger won by resignation"]

1. e4 {[%clk 0:03:00.9]} 1... c6 {[%clk 0:02:59.5]} 2. d4 {[%clk 0:03:00.5]}
2... d5 {[%clk 0:03:00.4]} 3. Nd2 {[%clk 0:03:00.9]} 3... dxe4 {[%clk 0:03:00]}
4. Nxe4 {[%clk 0:03:01.1]} 4... Bf5 {[%clk 0:03:00.8]} 5. Ng3 {[%clk 0:03:01.3]}
5... Bg6 {[%clk 0:03:01.5]} 6. Nh3 {[%clk 0:03:01.8]} 6... e6 {[%clk 0:02:47]}
7. Nf4 {[%clk 0:03:01.4]} 7... Bd6 {[%clk 0:02:47]} 8. c3 {[%clk 0:02:59.7]}
8... Nf6 {[%clk 0:02:45.9]} 9. Bc4 {[%clk 0:02:57.7]} 9... Bxf4 {[%clk
0:02:43.4]} 10. Bxf4 {[%clk 0:02:57]} 10... Nd5 {[%clk 0:02:44.3]} 11. Bd2
{[%clk 0:02:56.6]} 11... h5 {[%clk 0:02:44.2]} 12. h4 {[%clk 0:02:47]} 12... Nd7
{[%clk 0:02:42.1]} 13. Bg5 {[%clk 0:02:43.5]} 13... f6 {[%clk 0:02:33.8]} 14.
Qe2 {[%clk 0:02:38.5]} 14... Qe7 {[%clk 0:02:21.1]} 15. Bd2 {[%clk 0:02:34.3]}
15... O-O-O {[%clk 0:02:20.9]} 16. O-O-O {[%clk 0:02:33.7]} 16... N7b6 {[%clk
0:02:20.6]} 17. Bb3 {[%clk 0:02:33.3]} 17... Kb8 {[%clk 0:02:14.2]} 18. Ne4
{[%clk 0:02:32.5]} 18... e5 {[%clk 0:02:06.6]} 19. Nc5 {[%clk 0:02:14.3]} 19...
Rhe8 {[%clk 0:02:02.5]} 20. Rhe1 {[%clk 0:02:10.3]} 20... Qc7 {[%clk 0:02:00.7]}
21. Qf3 {[%clk 0:02:00.9]} 21... exd4 {[%clk 0:01:59.8]} 22. cxd4 {[%clk
0:02:00.7]} 22... Ka8 {[%clk 0:01:51.2]} 23. Ne6 {[%clk 0:01:58.5]} 23... Qd6
{[%clk 0:01:36.4]} 24. Nxd8 {[%clk 0:01:57.1]} 24... Rxd8 {[%clk 0:01:37.3]} 25.
Qg3 {[%clk 0:01:47.2]} 25... Qxg3 {[%clk 0:01:05.8]} 26. fxg3 {[%clk 0:01:47.1]}
26... Rc8 {[%clk 0:01:01.9]} 27. Bc3 {[%clk 0:01:36.6]} 27... Nxc3 {[%clk
0:00:59.7]} 28. bxc3 {[%clk 0:01:36.4]} 28... a5 {[%clk 0:01:00.6]} 29. Bc2
{[%clk 0:01:28.7]} 29... Bf7 {[%clk 0:00:57.6]} 30. Bb3 {[%clk 0:01:29]} 30...
Nd5 {[%clk 0:00:53.9]} 31. Kb2 {[%clk 0:01:26.4]} 31... b5 {[%clk 0:00:51.7]}
32. a3 {[%clk 0:01:22.4]} 32... Kb7 {[%clk 0:00:51.6]} 33. Bxd5 {[%clk
0:01:19.2]} 33... Bxd5 {[%clk 0:00:52.5]} 34. Re7+ {[%clk 0:01:19]} 34... Kb6
{[%clk 0:00:53.4]} 35. Rxg7 {[%clk 0:01:18.6]} 35... Bxg2 {[%clk 0:00:53.7]} 36.
Re1 {[%clk 0:01:18.1]} 36... b4 {[%clk 0:00:52.2]} 37. axb4 {[%clk 0:01:16]}
37... axb4 {[%clk 0:00:53.1]} 38. c4 {[%clk 0:01:16.5]} 38... Rd8 {[%clk
0:00:49]} 39. Rd1 {[%clk 0:01:07.4]} 39... Bf3 {[%clk 0:00:48.6]} 40. Rd2 {[%clk
0:01:07.6]} 40... f5 {[%clk 0:00:44.3]} 41. Kb3 {[%clk 0:01:07.5]} 41... Rb8
{[%clk 0:00:21.4]} 42. Kxb4 {[%clk 0:01:06.6]} 42... c5+ {[%clk 0:00:21.6]} 43.
Kc3 {[%clk 0:00:59.6]} 43... cxd4+ {[%clk 0:00:21.3]} 44. Rxd4 {[%clk
0:00:59.8]} 44... Kc5 {[%clk 0:00:20.9]} 45. Rc7+ {[%clk 0:00:56.2]} 45... Kb6
{[%clk 0:00:20.9]} 46. Rf7 {[%clk 0:00:51.8]} 46... Ra8 {[%clk 0:00:20.8]} 47.
Rxf5 {[%clk 0:00:47.1]} 47... Bg4 {[%clk 0:00:21.1]} 48. Rf6+ {[%clk 0:00:45]}
48... Kc7 {[%clk 0:00:20.3]} 49. Kb4 {[%clk 0:00:43.1]} 49... Ra1 {[%clk
0:00:18.8]} 50. Re4 {[%clk 0:00:39.5]} 50... Kd7 {[%clk 0:00:15.4]} 51. Kc5
{[%clk 0:00:30.1]} 51... Ra5+ {[%clk 0:00:14.7]} 52. Kd4 {[%clk 0:00:30.4]}
52... Ra1 {[%clk 0:00:15]} 53. Ref4 {[%clk 0:00:29.8]} 53... Rd1+ {[%clk
0:00:14.5]} 54. Kc5 {[%clk 0:00:30.1]} 54... Rc1 {[%clk 0:00:14.8]} 55. Rf7+
{[%clk 0:00:30.5]} 55... Ke6 {[%clk 0:00:15]} 56. Rf8 {[%clk 0:00:28.3]} 56...
Ke7 {[%clk 0:00:12.8]} 57. Rh8 {[%clk 0:00:26.7]} 57... Rc2 {[%clk 0:00:11.8]}
58. Rh6 {[%clk 0:00:26.9]} 58... Rc1 {[%clk 0:00:10.8]} 59. Rff6 {[%clk
0:00:27.3]} 59... Rc2 {[%clk 0:00:10.2]} 60. Ra6 {[%clk 0:00:27.3]} 60... Rc1
{[%clk 0:00:09.8]} 61. Rh7+ {[%clk 0:00:27.6]} 61... Kd8 {[%clk 0:00:08.6]} 62.
Ra8+ {[%clk 0:00:27.7]} 62... Bc8 {[%clk 0:00:09.3]} 63. Rh8+ {[%clk 0:00:28.1]}
63... Kd7 {[%clk 0:00:09.9]} 64. Raxc8 {[%clk 0:00:28.3]} 1-0

[Event "*** Titled Tuesday Blitz"]
[Site "Chess.com"]
[Date "2020.04.14"]
[Round "6"]
[White "Playgood28"]
[Black "ChocolateRoses"]
[Result "0-1"]
[WhiteElo "2148"]
[BlackElo "2287"]
[TimeControl "180+1"]
[EndTime "11:04:24 PDT"]
[Termination "ChocolateRoses won on time"]

1. d4 {[%clk 0:03:00.9]} 1... d5 {[%clk 0:02:59.5]} 2. c4 {[%clk 0:03:00.5]}
2... dxc4 {[%clk 0:02:58.7]} 3. e4 {[%clk 0:02:59.3]} 3... Nf6 {[%clk
0:02:54.7]} 4. e5 {[%clk 0:02:58.2]} 4... Nd5 {[%clk 0:02:54.8]} 5. Bxc4 {[%clk
0:02:58]} 5... Nb6 {[%clk 0:02:55.3]} 6. Bb3 {[%clk 0:02:57.6]} 6... Nc6 {[%clk
0:02:55.7]} 7. Ne2 {[%clk 0:02:57]} 7... Bf5 {[%clk 0:02:53.5]} 8. O-O {[%clk
0:02:48.8]} 8... e6 {[%clk 0:02:52.6]} 9. Nbc3 {[%clk 0:02:47.7]} 9... Qd7
{[%clk 0:02:52.4]} 10. Be3 {[%clk 0:02:42.6]} 10... O-O-O {[%clk 0:02:48.1]} 11.
a4 {[%clk 0:02:34.1]} 11... a5 {[%clk 0:02:23]} 12. Nb5 {[%clk 0:02:26.4]} 12...
Nb4 {[%clk 0:02:15.9]} 13. Rc1 {[%clk 0:02:15.7]} 13... c6 {[%clk 0:02:04.6]}
14. Qd2 {[%clk 0:01:27.6]} 14... Kb8 {[%clk 0:02:03.3]} 15. Na3 {[%clk
0:01:26.5]} 15... N4d5 {[%clk 0:01:46.2]} 16. Nc4 {[%clk 0:01:19.5]} 16... Bb4
{[%clk 0:01:42.7]} 17. Nc3 {[%clk 0:01:18.5]} 17... Nxc4 {[%clk 0:01:24.6]} 18.
Bxc4 {[%clk 0:01:17.5]} 18... Nxe3 {[%clk 0:00:40]} 19. Qxe3 {[%clk 0:01:00]}
19... Qxd4 {[%clk 0:00:37]} 20. Qxd4 {[%clk 0:00:49.7]} 20... Rxd4 {[%clk
0:00:37.9]} 21. Ne2 {[%clk 0:00:43.3]} 21... Rd2 {[%clk 0:00:33.5]} 22. Ng3
{[%clk 0:00:42.3]} 22... Bg6 {[%clk 0:00:30.8]} 23. b3 {[%clk 0:00:40.2]} 23...
Rhd8 {[%clk 0:00:28.3]} 24. Rfe1 {[%clk 0:00:36.8]} 24... Bc5 {[%clk 0:00:20.7]}
25. Re2 {[%clk 0:00:32.6]} 25... Rxe2 {[%clk 0:00:13.7]} 26. Nxe2 {[%clk
0:00:31.6]} 26... Bb6 {[%clk 0:00:12.6]} 27. Kf1 {[%clk 0:00:28.5]} 27... Bc7
{[%clk 0:00:11.1]} 28. f4 {[%clk 0:00:26.7]} 28... Be4 {[%clk 0:00:07.5]} 29. g3
{[%clk 0:00:25.5]} 29... Bd3 {[%clk 0:00:07.4]} 30. Bxd3 {[%clk 0:00:18.8]}
30... Rxd3 {[%clk 0:00:08.3]} 31. Rc3 {[%clk 0:00:17.6]} 31... Rxc3 {[%clk
0:00:05.7]} 32. Nxc3 {[%clk 0:00:17.3]} 32... Bb6 {[%clk 0:00:06.3]} 33. Kg2
{[%clk 0:00:16.4]} 33... Kc7 {[%clk 0:00:05]} 34. Kf3 {[%clk 0:00:16.5]} 34...
Bd4 {[%clk 0:00:05.2]} 35. Ne4 {[%clk 0:00:14.2]} 35... b5 {[%clk 0:00:04.5]}
36. g4 {[%clk 0:00:12.2]} 36... bxa4 {[%clk 0:00:03.8]} 37. bxa4 {[%clk
0:00:11]} 37... c5 {[%clk 0:00:03.8]} 38. Nd2 {[%clk 0:00:09.3]} 38... Bc3
{[%clk 0:00:02.6]} 39. Nc4 {[%clk 0:00:07.1]} 39... Kd7 {[%clk 0:00:02.3]} 40.
Ke4 {[%clk 0:00:07.2]} 40... Kc6 {[%clk 0:00:02.7]} 41. h3 {[%clk 0:00:07]}
41... Bb4 {[%clk 0:00:02.4]} 42. Ne3 {[%clk 0:00:06.3]} 42... f6 {[%clk
0:00:02.7]} 43. Nc4 {[%clk 0:00:05.6]} 43... Bc3 {[%clk 0:00:02.6]} 44. exf6
{[%clk 0:00:03.7]} 44... gxf6 {[%clk 0:00:03.5]} 45. h4 {[%clk 0:00:01.6]} 45...
Be1 {[%clk 0:00:02.8]} 46. h5 {[%clk 0:00:01.4]} 46... Bc3 {[%clk 0:00:02.7]}
0-1

[Event "*** Titled Tuesday Blitz"]
[Site "Chess.com"]
[Date "2020.04.14"]
[Round "6"]
[White "Ariadna_Atreides"]
[Black "mjray79"]
[Result "0-1"]
[WhiteElo "2009"]
[BlackElo "2251"]
[TimeControl "180+1"]
[EndTime "11:04:25 PDT"]
[Termination "mjray79 won on time"]

1. Nf3 {[%clk 0:03:00.9]} 1... Nf6 {[%clk 0:02:59.5]} 2. c4 {[%clk 0:02:59.2]}
2... g6 {[%clk 0:02:59.7]} 3. b4 {[%clk 0:02:57.9]} 3... Bg7 {[%clk 0:02:57.9]}
4. Bb2 {[%clk 0:02:57.9]} 4... a5 {[%clk 0:02:57.5]} 5. b5 {[%clk 0:02:55.7]}
5... d5 {[%clk 0:02:55.4]} 6. cxd5 {[%clk 0:02:51.7]} 6... Qxd5 {[%clk
0:02:56.3]} 7. Nc3 {[%clk 0:02:50.8]} 7... Qd8 {[%clk 0:02:45.3]} 8. Qb3 {[%clk
0:02:24.7]} 8... Be6 {[%clk 0:02:39.8]} 9. Qc2 {[%clk 0:02:20.6]} 9... O-O
{[%clk 0:02:37.9]} 10. e4 {[%clk 0:02:04.3]} 10... c6 {[%clk 0:02:36.3]} 11. Be2
{[%clk 0:01:59.2]} 11... cxb5 {[%clk 0:02:34.9]} 12. Bxb5 {[%clk 0:01:56.1]}
12... Nc6 {[%clk 0:02:33.2]} 13. O-O {[%clk 0:01:52.7]} 13... Bg4 {[%clk
0:02:28.3]} 14. Bxc6 {[%clk 0:01:37.9]} 14... bxc6 {[%clk 0:02:29.2]} 15. Ne5
{[%clk 0:01:37.7]} 15... Qd6 {[%clk 0:02:20.6]} 16. Na4 {[%clk 0:01:14.8]} 16...
Be2 {[%clk 0:02:05]} 17. Rfe1 {[%clk 0:01:10.9]} 17... Bb5 {[%clk 0:02:04.5]}
18. d4 {[%clk 0:00:48.7]} 18... Nd7 {[%clk 0:01:48.9]} 19. Nxd7 {[%clk
0:00:47.5]} 19... Qxd7 {[%clk 0:01:49.8]} 20. Nb6 {[%clk 0:00:47.5]} 20... Qg4
{[%clk 0:01:32.5]} 21. Nxa8 {[%clk 0:00:47.1]} 21... Rxa8 {[%clk 0:01:32.8]} 22.
f3 {[%clk 0:00:42.2]} 22... Qg5 {[%clk 0:01:26.1]} 23. a4 {[%clk 0:00:39.8]}
23... Ba6 {[%clk 0:01:16.1]} 24. Qxc6 {[%clk 0:00:39.6]} 24... Ra7 {[%clk
0:01:15.9]} 25. Qb6 {[%clk 0:00:31.9]} 25... Rb7 {[%clk 0:01:09.2]} 26. Qxa6
{[%clk 0:00:30]} 26... Rxb2 {[%clk 0:01:09.4]} 27. Qc8+ {[%clk 0:00:27.7]} 27...
Bf8 {[%clk 0:01:06.9]} 28. Qh3 {[%clk 0:00:20.8]} 28... Bg7 {[%clk 0:00:57.3]}
29. e5 {[%clk 0:00:20.6]} 29... h5 {[%clk 0:00:54.7]} 30. Rac1 {[%clk
0:00:18.8]} 30... Qd2 {[%clk 0:00:50.1]} 31. Qg3 {[%clk 0:00:15.8]} 31... Qxd4+
{[%clk 0:00:46.9]} 32. Kh1 {[%clk 0:00:15.3]} 32... Bh6 {[%clk 0:00:42.6]} 33.
Rc8+ {[%clk 0:00:14.1]} 33... Kg7 {[%clk 0:00:41.6]} 34. h3 {[%clk 0:00:13.1]}
34... Bf4 {[%clk 0:00:40.8]} 35. Qh4 {[%clk 0:00:09.1]} 35... Qd2 {[%clk
0:00:38.4]} 36. Rg1 {[%clk 0:00:06.8]} 36... Bg5 {[%clk 0:00:33.2]} 37. Qe1
{[%clk 0:00:06.1]} 37... Qd4 {[%clk 0:00:28.3]} 38. e6 {[%clk 0:00:05.6]} 38...
Be3 {[%clk 0:00:25]} 39. exf7 {[%clk 0:00:04.1]} 39... Kxf7 {[%clk 0:00:25.9]}
40. Rf1 {[%clk 0:00:03]} 40... Qf4 {[%clk 0:00:23.7]} 41. Rg1 {[%clk 0:00:02.2]}
41... Bxg1 {[%clk 0:00:21.8]} 42. Qxg1 {[%clk 0:00:02.7]} 42... Qg3 {[%clk
0:00:20.9]} 43. Rc1 {[%clk 0:00:02.2]} 43... Kg7 {[%clk 0:00:19.4]} 44. Qf1
{[%clk 0:00:02.4]} 44... Qg5 {[%clk 0:00:17.5]} 45. Re1 {[%clk 0:00:02.2]} 45...
Qf6 {[%clk 0:00:16.1]} 46. f4 {[%clk 0:00:02.2]} 46... Qc3 {[%clk 0:00:15.1]}
47. Rxe7+ {[%clk 0:00:01.3]} 47... Kh6 {[%clk 0:00:14.2]} 48. Re1 {[%clk
0:00:01.8]} 48... Qc2 {[%clk 0:00:14.1]} 49. Qg1 {[%clk 0:00:01.4]} 49... Qxa4
{[%clk 0:00:13.5]} 50. g4 {[%clk 0:00:01.1]} 50... Qxf4 {[%clk 0:00:10.9]} 51.
g5+ {[%clk 0:00:01.1]} 51... Qxg5 {[%clk 0:00:09.7]} 0-1